[Event "Late-Titled-Tuesday-Blitz-April-23-2024"]
[Site "Chess.com"]
[Date "2024.04.23"]
[Round "1"]
[White "aranibos"]
[Black "RobertJFischer71"]
[Result "1-0"]
[WhiteElo "2265"]
[BlackElo "2590"]
[TimeControl "180+1"]
[EndTime "14:07:58 PDT"]
[Termination "aranibos won by checkmate"]

1. d4 {[%clk 0:02:58.7]} 1... d5 {[%clk 0:02:59.8]} 2. Nf3 {[%clk 0:02:59.1]}
2... Nf6 {[%clk 0:02:59.6]} 3. Bg5 {[%clk 0:02:59.5]} 3... Ne4 {[%clk
0:02:58.5]} 4. Bf4 {[%clk 0:02:59.3]} 4... Bf5 {[%clk 0:02:57.6]} 5. e3 {[%clk
0:02:59.2]} 5... e6 {[%clk 0:02:57.2]} 6. Bd3 {[%clk 0:02:59.7]} 6... Be7 {[%clk
0:02:55.3]} 7. h3 {[%clk 0:02:59.6]} 7... Nd7 {[%clk 0:02:54.5]} 8. O-O {[%clk
0:03:00.1]} 8... c6 {[%clk 0:02:52.8]} 9. c4 {[%clk 0:03:00.5]} 9... O-O {[%clk
0:02:51.9]} 10. Nc3 {[%clk 0:03:00.5]} 10... Nxc3 {[%clk 0:02:45.1]} 11. bxc3
{[%clk 0:03:01.1]} 11... dxc4 {[%clk 0:02:37.4]} 12. Bxc4 {[%clk 0:03:01]} 12...
b5 {[%clk 0:02:34]} 13. Bd3 {[%clk 0:03:00.5]} 13... Bxd3 {[%clk 0:02:34.5]} 14.
Qxd3 {[%clk 0:03:00.5]} 14... a6 {[%clk 0:02:34.8]} 15. Rfd1 {[%clk 0:02:57.9]}
15... c5 {[%clk 0:02:31.4]} 16. d5 {[%clk 0:02:52.8]} 16... exd5 {[%clk
0:02:18.9]} 17. Qxd5 {[%clk 0:02:52.3]} 17... Nb6 {[%clk 0:02:09.2]} 18. Qb7
{[%clk 0:02:51]} 18... Qc8 {[%clk 0:01:32.6]} 19. Qxe7 {[%clk 0:02:37.5]} 19...
Na4 {[%clk 0:01:27.7]} 20. Rac1 {[%clk 0:02:35.6]} 20... c4 {[%clk 0:01:24.6]}
21. Nd4 {[%clk 0:02:31.7]} 21... Re8 {[%clk 0:01:09.2]} 22. Qg5 {[%clk
0:02:30.7]} 22... Nb2 {[%clk 0:01:02.8]} 23. Nf5 {[%clk 0:02:27.5]} 23... g6
{[%clk 0:00:54.7]} 24. Nd6 {[%clk 0:02:26.6]} 24... Qe6 {[%clk 0:00:47.2]} 25.
Nxe8 {[%clk 0:02:26.4]} 25... Rxe8 {[%clk 0:00:37.2]} 26. Rd8 {[%clk 0:02:20.8]}
26... Nd3 {[%clk 0:00:37.5]} 27. Rxe8+ {[%clk 0:02:18.9]} 27... Qxe8 {[%clk
0:00:38.4]} 28. Rf1 {[%clk 0:02:16.8]} 28... Kg7 {[%clk 0:00:29.4]} 29. Qh6+
{[%clk 0:02:16]} 29... Kg8 {[%clk 0:00:29.8]} 30. Bg5 {[%clk 0:02:16]} 30... Qe5
{[%clk 0:00:27.4]} 31. Bf4 {[%clk 0:01:59]} 31... Qxc3 {[%clk 0:00:25.3]} 32.
Bd6 {[%clk 0:01:56.8]} 32... Qg7 {[%clk 0:00:20.5]} 33. Qg5 {[%clk 0:01:52.6]}
33... h6 {[%clk 0:00:17.5]} 34. Qd8+ {[%clk 0:01:50.3]} 34... Kh7 {[%clk
0:00:17.9]} 35. Qf8 {[%clk 0:01:39.7]} 35... Qxf8 {[%clk 0:00:15.9]} 36. Bxf8
{[%clk 0:01:38.9]} 36... b4 {[%clk 0:00:16.5]} 37. Bxb4 {[%clk 0:01:36.8]} 37...
Nxb4 {[%clk 0:00:16.5]} 38. Rc1 {[%clk 0:01:37.4]} 38... Nxa2 {[%clk 0:00:13.8]}
39. Rxc4 {[%clk 0:01:37.8]} 39... a5 {[%clk 0:00:12.9]} 40. Ra4 {[%clk
0:01:36.7]} 40... Nc3 {[%clk 0:00:13.2]} 41. Rxa5 {[%clk 0:01:36.8]} 41... Ne4
{[%clk 0:00:13.7]} 42. Re5 {[%clk 0:01:31.4]} 42... Nf6 {[%clk 0:00:13.3]} 43.
g4 {[%clk 0:01:30.9]} 43... Kg7 {[%clk 0:00:13.2]} 44. f4 {[%clk 0:01:31.4]}
44... Nh7 {[%clk 0:00:13]} 45. Ra5 {[%clk 0:01:30.5]} 45... Nf6 {[%clk
0:00:13.5]} 46. Kg2 {[%clk 0:01:29.9]} 46... Ne4 {[%clk 0:00:13.3]} 47. Kf3
{[%clk 0:01:28.9]} 47... Nd2+ {[%clk 0:00:13.6]} 48. Ke2 {[%clk 0:01:29.3]}
48... Ne4 {[%clk 0:00:14.5]} 49. Re5 {[%clk 0:01:27.6]} 49... Nd6 {[%clk
0:00:12.6]} 50. e4 {[%clk 0:01:24.1]} 50... Kf6 {[%clk 0:00:11.6]} 51. h4 {[%clk
0:01:19.4]} 51... Kg7 {[%clk 0:00:09.5]} 52. Kf3 {[%clk 0:01:11.1]} 52... Kf6
{[%clk 0:00:07.7]} 53. Rd5 {[%clk 0:01:09.4]} 53... Ne8 {[%clk 0:00:06.4]} 54.
g5+ {[%clk 0:01:09.4]} 54... hxg5 {[%clk 0:00:06.3]} 55. hxg5+ {[%clk
0:01:09.8]} 55... Ke6 {[%clk 0:00:06.7]} 56. Re5+ {[%clk 0:01:09.5]} 56... Kd7
{[%clk 0:00:07.3]} 57. f5 {[%clk 0:01:07.9]} 57... Nd6 {[%clk 0:00:06.6]} 58.
Rd5 {[%clk 0:01:05.7]} 58... Ke7 {[%clk 0:00:06.5]} 59. Kf4 {[%clk 0:01:03]}
59... Nc4 {[%clk 0:00:05.7]} 60. Rc5 {[%clk 0:00:59.6]} 60... Nd6 {[%clk
0:00:05.6]} 61. Rc7+ {[%clk 0:00:56.6]} 61... Kf8 {[%clk 0:00:05.3]} 62. Rd7
{[%clk 0:00:55.8]} 62... Ne8 {[%clk 0:00:05.4]} 63. f6 {[%clk 0:00:54.7]} 63...
Kg8 {[%clk 0:00:04.6]} 64. Rd8 {[%clk 0:00:54.4]} 64... Kf8 {[%clk 0:00:05.2]}
65. Ke5 {[%clk 0:00:54.4]} 65... Kg8 {[%clk 0:00:04.2]} 66. Rxe8+ {[%clk
0:00:54.3]} 66... Kh7 {[%clk 0:00:05.1]} 67. Re7 {[%clk 0:00:54.3]} 67... Kg8
{[%clk 0:00:05.5]} 68. Kd6 {[%clk 0:00:54.2]} 68... Kf8 {[%clk 0:00:06]} 69. e5
{[%clk 0:00:54.8]} 69... Kg8 {[%clk 0:00:06.3]} 70. e6 {[%clk 0:00:53.8]} 70...
Kh8 {[%clk 0:00:06.5]} 71. exf7 {[%clk 0:00:52.3]} 71... Kh7 {[%clk 0:00:05.5]}
72. f8=Q# {[%clk 0:00:51.8]} 1-0

[Event "Late-Titled-Tuesday-Blitz-April-23-2024"]
[Site "Chess.com"]
[Date "2024.04.23"]
[Round "1"]
[White "LeninGuerra"]
[Black "ubdip"]
[Result "0-1"]
[WhiteElo "2691"]
[BlackElo "2431"]
[TimeControl "180+1"]
[EndTime "14:07:59 PDT"]
[Termination "ubdip won on time"]

1. e4 {[%clk 0:02:56.4]} 1... c6 {[%clk 0:02:59.4]} 2. Nf3 {[%clk 0:02:55.4]}
2... d5 {[%clk 0:02:59.5]} 3. exd5 {[%clk 0:02:56.3]} 3... cxd5 {[%clk
0:02:59.6]} 4. Ne5 {[%clk 0:02:56.8]} 4... Nf6 {[%clk 0:02:57.3]} 5. Bb5+ {[%clk
0:02:57.3]} 5... Nbd7 {[%clk 0:02:56.3]} 6. Qe2 {[%clk 0:02:57.2]} 6... a6
{[%clk 0:02:51.2]} 7. Bxd7+ {[%clk 0:02:56.5]} 7... Bxd7 {[%clk 0:02:51.4]} 8.
O-O {[%clk 0:02:57]} 8... e6 {[%clk 0:02:51.2]} 9. b3 {[%clk 0:02:57.3]} 9...
Be7 {[%clk 0:02:47.8]} 10. Bb2 {[%clk 0:02:57.5]} 10... O-O {[%clk 0:02:47.9]}
11. d3 {[%clk 0:02:55.3]} 11... Rc8 {[%clk 0:02:47.9]} 12. c4 {[%clk 0:02:55]}
12... Re8 {[%clk 0:02:42]} 13. Nd2 {[%clk 0:02:54.9]} 13... h6 {[%clk
0:02:38.6]} 14. Ndf3 {[%clk 0:02:53.2]} 14... b5 {[%clk 0:02:28.6]} 15. Rfd1
{[%clk 0:02:46]} 15... Qb6 {[%clk 0:02:14.3]} 16. h3 {[%clk 0:02:44.6]} 16...
Red8 {[%clk 0:02:12.8]} 17. Nh2 {[%clk 0:02:30.8]} 17... Be8 {[%clk 0:02:00.9]}
18. Nhg4 {[%clk 0:02:21.7]} 18... Nxg4 {[%clk 0:01:48.7]} 19. Qxg4 {[%clk
0:02:22.6]} 19... Bf8 {[%clk 0:01:49.2]} 20. Bd4 {[%clk 0:02:12.9]} 20... Qb8
{[%clk 0:01:44.6]} 21. Kh1 {[%clk 0:01:51.7]} 21... bxc4 {[%clk 0:01:26.2]} 22.
dxc4 {[%clk 0:01:51.3]} 22... dxc4 {[%clk 0:01:23.9]} 23. Nxc4 {[%clk 0:01:51]}
23... Bb5 {[%clk 0:01:12.3]} 24. Be5 {[%clk 0:01:47.3]} 24... Qa7 {[%clk
0:00:55.5]} 25. Nd6 {[%clk 0:01:45.7]} 25... Ra8 {[%clk 0:00:48.4]} 26. Rd2
{[%clk 0:01:22.3]} 26... Bc6 {[%clk 0:00:45.6]} 27. Rad1 {[%clk 0:01:20.8]}
27... Bd5 {[%clk 0:00:45.7]} 28. Ne4 {[%clk 0:01:15.7]} 28... Kh7 {[%clk
0:00:39]} 29. Ng3 {[%clk 0:01:10.1]} 29... Qb7 {[%clk 0:00:34.9]} 30. Nh5 {[%clk
0:01:09.8]} 30... f5 {[%clk 0:00:32.2]} 31. Qg3 {[%clk 0:01:05.5]} 31... Rac8
{[%clk 0:00:28.6]} 32. Nf4 {[%clk 0:01:04.9]} 32... Qf7 {[%clk 0:00:21.1]} 33.
h4 {[%clk 0:00:58.3]} 33... Be7 {[%clk 0:00:18.9]} 34. Kh2 {[%clk 0:00:30.5]}
34... Be4 {[%clk 0:00:14.4]} 35. Rxd8 {[%clk 0:00:28.8]} 35... Rxd8 {[%clk
0:00:15.3]} 36. Rxd8 {[%clk 0:00:28.5]} 36... Bxd8 {[%clk 0:00:16.2]} 37. Nh5
{[%clk 0:00:22.7]} 37... g6 {[%clk 0:00:11.3]} 38. Nf4 {[%clk 0:00:20.6]} 38...
Qe7 {[%clk 0:00:09.4]} 39. Kh3 {[%clk 0:00:16.3]} 39... Qf7 {[%clk 0:00:09]} 40.
Qc3 {[%clk 0:00:15.7]} 40... g5 {[%clk 0:00:08.7]} 41. Ne2 {[%clk 0:00:10]}
41... Qh5 {[%clk 0:00:06.6]} 42. Kh2 {[%clk 0:00:04.9]} 42... Qxe2 {[%clk
0:00:06.5]} 43. Qc8 {[%clk 0:00:05.1]} 43... Qd3 {[%clk 0:00:05.9]} 44. Qb8
{[%clk 0:00:03.5]} 44... Qd7 {[%clk 0:00:05.6]} 45. Qb5 {[%clk 0:00:02.6]} 45...
Kg6 {[%clk 0:00:05.9]} 46. Qb4 {[%clk 0:00:02.4]} 46... Qc6 {[%clk 0:00:05.7]}
47. Qe1 {[%clk 0:00:02.8]} 47... Qe8 {[%clk 0:00:05.7]} 48. Qxe4 {[%clk
0:00:03]} 48... fxe4 {[%clk 0:00:05.8]} 49. h5+ {[%clk 0:00:03.1]} 49... Kf5
{[%clk 0:00:06.3]} 50. g4+ {[%clk 0:00:03.7]} 50... Kxe5 {[%clk 0:00:06.7]} 0-1

[Event "Late-Titled-Tuesday-Blitz-April-23-2024"]
[Site "Chess.com"]
[Date "2024.04.23"]
[Round "1"]
[White "David_ATM"]
[Black "GMG"]
[Result "1/2-1/2"]
[WhiteElo "2457"]
[BlackElo "2774"]
[TimeControl "180+1"]
[EndTime "14:08:02 PDT"]
[Termination "Game drawn by repetition"]

1. e4 {[%clk 0:03:00.9]} 1... c5 {[%clk 0:03:00]} 2. c3 {[%clk 0:03:00.4]} 2...
Nf6 {[%clk 0:02:54.1]} 3. e5 {[%clk 0:03:00.1]} 3... Nd5 {[%clk 0:02:54.7]} 4.
d4 {[%clk 0:03:01]} 4... cxd4 {[%clk 0:02:55.3]} 5. Nf3 {[%clk 0:03:01.8]} 5...
Nc6 {[%clk 0:02:54.4]} 6. cxd4 {[%clk 0:03:02.7]} 6... d6 {[%clk 0:02:54.4]} 7.
Bc4 {[%clk 0:03:02.1]} 7... Nb6 {[%clk 0:02:52.1]} 8. Bb5 {[%clk 0:03:02.1]}
8... dxe5 {[%clk 0:02:52.2]} 9. Nxe5 {[%clk 0:03:03]} 9... Bd7 {[%clk
0:02:52.5]} 10. Nxd7 {[%clk 0:03:03.7]} 10... Qxd7 {[%clk 0:02:52.6]} 11. Nc3
{[%clk 0:03:04]} 11... e6 {[%clk 0:02:51.5]} 12. O-O {[%clk 0:03:03.5]} 12...
Rd8 {[%clk 0:02:39.6]} 13. Be3 {[%clk 0:03:03.2]} 13... Be7 {[%clk 0:02:34.3]}
14. Qg4 {[%clk 0:03:03.2]} 14... O-O {[%clk 0:02:26.9]} 15. Bxc6 {[%clk
0:03:03.5]} 15... Qxc6 {[%clk 0:02:12.1]} 16. Bh6 {[%clk 0:02:52.2]} 16... Bf6
{[%clk 0:02:11.5]} 17. Rfd1 {[%clk 0:02:52.1]} 17... Kh8 {[%clk 0:01:44]} 18.
Bg5 {[%clk 0:01:31.4]} 18... Bxg5 {[%clk 0:01:37.6]} 19. Qxg5 {[%clk 0:01:32.3]}
19... h6 {[%clk 0:01:34.9]} 20. Qc5 {[%clk 0:01:25.1]} 20... Qd7 {[%clk
0:01:28.5]} 21. h3 {[%clk 0:01:13.2]} 21... Rfe8 {[%clk 0:01:10.4]} 22. Qb5
{[%clk 0:01:02.2]} 22... Qxb5 {[%clk 0:01:07.2]} 23. Nxb5 {[%clk 0:01:03.1]}
23... a6 {[%clk 0:01:04.1]} 24. Nc3 {[%clk 0:01:01.5]} 24... Nd5 {[%clk
0:00:59.6]} 25. Nxd5 {[%clk 0:00:56.1]} 25... Rxd5 {[%clk 0:01:00.5]} 26. Rac1
{[%clk 0:00:56.1]} 26... Re7 {[%clk 0:00:57.2]} 27. Rc5 {[%clk 0:00:48.9]} 27...
Red7 {[%clk 0:00:55.3]} 28. Rxd5 {[%clk 0:00:44.7]} 28... Rxd5 {[%clk
0:00:56.2]} 29. Rd3 {[%clk 0:00:45.1]} 29... e5 {[%clk 0:00:53.8]} 30. Kf1
{[%clk 0:00:23.9]} 30... exd4 {[%clk 0:00:52.2]} 31. Ke2 {[%clk 0:00:24.3]}
31... f5 {[%clk 0:00:39.2]} 32. f4 {[%clk 0:00:20.4]} 32... g6 {[%clk
0:00:35.5]} 33. Rb3 {[%clk 0:00:20.3]} 33... b5 {[%clk 0:00:35.4]} 34. Kd3
{[%clk 0:00:20.1]} 34... a5 {[%clk 0:00:29.2]} 35. Kd2 {[%clk 0:00:18.2]} 35...
Kg7 {[%clk 0:00:27.2]} 36. Rf3 {[%clk 0:00:16.5]} 36... Kf6 {[%clk 0:00:27.1]}
37. Rf1 {[%clk 0:00:16.3]} 37... g5 {[%clk 0:00:22.3]} 38. g3 {[%clk 0:00:10.2]}
38... gxf4 {[%clk 0:00:17.2]} 39. Rxf4 {[%clk 0:00:11.1]} 39... Ke5 {[%clk
0:00:16.3]} 40. Kd3 {[%clk 0:00:10.5]} 40... a4 {[%clk 0:00:15.7]} 41. a3 {[%clk
0:00:10.1]} 41... Rd6 {[%clk 0:00:13.4]} 42. Rh4 {[%clk 0:00:10.4]} 42... Rg6
{[%clk 0:00:13.6]} 43. g4 {[%clk 0:00:09]} 43... fxg4 {[%clk 0:00:09.1]} 44.
hxg4 {[%clk 0:00:09.9]} 44... Kf4 {[%clk 0:00:08.8]} 45. Kxd4 {[%clk 0:00:05.6]}
45... Kg3 {[%clk 0:00:07.3]} 46. Rh5 {[%clk 0:00:05.3]} 46... Rxg4+ {[%clk
0:00:07.3]} 47. Kc3 {[%clk 0:00:04.3]} 47... Rc4+ {[%clk 0:00:04.6]} 48. Kd3
{[%clk 0:00:04]} 48... Rc6 {[%clk 0:00:03.9]} 49. Rxb5 {[%clk 0:00:03.6]} 49...
Ra6 {[%clk 0:00:02.4]} 50. Ke3 {[%clk 0:00:03.5]} 50... Kg4 {[%clk 0:00:02.6]}
51. Rb4+ {[%clk 0:00:03.2]} 51... Kg3 {[%clk 0:00:02.6]} 52. Rb5 {[%clk
0:00:03.1]} 52... Kg4 {[%clk 0:00:02.5]} 53. Rb4+ {[%clk 0:00:03.1]} 53... Kg3
{[%clk 0:00:02.7]} 54. Rb5 {[%clk 0:00:04]} 1/2-1/2

[Event "Late-Titled-Tuesday-Blitz-April-23-2024"]
[Site "Chess.com"]
[Date "2024.04.23"]
[Round "1"]
[White "kripri"]
[Black "Ajedrez_con_German"]
[Result "0-1"]
[WhiteElo "2344"]
[BlackElo "2651"]
[TimeControl "180+1"]
[EndTime "14:08:06 PDT"]
[Termination "Ajedrez_con_German won on time"]

1. e4 {[%clk 0:02:57.8]} 1... a6 {[%clk 0:02:57.4]} 2. d4 {[%clk 0:02:57.7]}
2... e6 {[%clk 0:01:53]} 3. Nf3 {[%clk 0:02:57.4]} 3... d5 {[%clk 0:01:51.8]} 4.
Nc3 {[%clk 0:02:54.8]} 4... Bb4 {[%clk 0:01:48.8]} 5. e5 {[%clk 0:02:48.3]} 5...
c5 {[%clk 0:01:47]} 6. a3 {[%clk 0:02:48.3]} 6... Ba5 {[%clk 0:01:42.3]} 7. dxc5
{[%clk 0:02:47.3]} 7... Bxc3+ {[%clk 0:01:42.4]} 8. bxc3 {[%clk 0:02:47.7]} 8...
Nd7 {[%clk 0:01:41]} 9. Be3 {[%clk 0:02:47.4]} 9... Qc7 {[%clk 0:01:40.4]} 10.
Qd4 {[%clk 0:02:47.5]} 10... Ne7 {[%clk 0:01:39.6]} 11. Bd3 {[%clk 0:02:46.4]}
11... Nc6 {[%clk 0:01:38.2]} 12. Qg4 {[%clk 0:02:46.8]} 12... Ndxe5 {[%clk
0:01:22.5]} 13. Qxg7 {[%clk 0:02:43.2]} 13... Nxf3+ {[%clk 0:01:21.2]} 14. gxf3
{[%clk 0:02:44.1]} 14... Qe5 {[%clk 0:01:20]} 15. Qxe5 {[%clk 0:02:42.4]} 15...
Nxe5 {[%clk 0:01:20]} 16. Be2 {[%clk 0:02:37.5]} 16... Bd7 {[%clk 0:01:04]} 17.
Bd4 {[%clk 0:02:37.3]} 17... f6 {[%clk 0:01:04.1]} 18. f4 {[%clk 0:02:37.5]}
18... Ng6 {[%clk 0:01:04.3]} 19. f5 {[%clk 0:02:29.9]} 19... exf5 {[%clk
0:00:56.4]} 20. Bxf6 {[%clk 0:02:29.9]} 20... Rf8 {[%clk 0:00:56.7]} 21. Bd4
{[%clk 0:02:29.1]} 21... Nf4 {[%clk 0:00:53.6]} 22. Bf3 {[%clk 0:02:28.6]} 22...
Kf7 {[%clk 0:00:52.1]} 23. Kd2 {[%clk 0:02:28.1]} 23... Rfe8 {[%clk 0:00:49.6]}
24. Rhe1 {[%clk 0:02:26]} 24... Bc6 {[%clk 0:00:48.3]} 25. Re5 {[%clk
0:02:06.8]} 25... Rxe5 {[%clk 0:00:47.6]} 26. Bxe5 {[%clk 0:02:07.7]} 26... Ng6
{[%clk 0:00:46.8]} 27. Bd6 {[%clk 0:02:07.2]} 27... Re8 {[%clk 0:00:44.6]} 28.
Re1 {[%clk 0:02:06.5]} 28... Rxe1 {[%clk 0:00:43.4]} 29. Kxe1 {[%clk 0:02:07.4]}
29... Ke6 {[%clk 0:00:43.1]} 30. Kd2 {[%clk 0:02:02.2]} 30... Ne5 {[%clk
0:00:42.7]} 31. Be2 {[%clk 0:02:02.2]} 31... Nf7 {[%clk 0:00:24.3]} 32. Bf4
{[%clk 0:02:01.3]} 32... Ne5 {[%clk 0:00:19.4]} 33. Ke3 {[%clk 0:01:53.1]} 33...
Ng4+ {[%clk 0:00:17.5]} 34. Bxg4 {[%clk 0:01:48.9]} 34... fxg4 {[%clk
0:00:17.7]} 35. Kd4 {[%clk 0:01:49.1]} 35... h5 {[%clk 0:00:16.5]} 36. Bg3
{[%clk 0:01:47.5]} 36... Kf5 {[%clk 0:00:16.5]} 37. c4 {[%clk 0:01:41.4]} 37...
dxc4 {[%clk 0:00:16.4]} 38. Kxc4 {[%clk 0:01:42.3]} 38... Ke4 {[%clk 0:00:17.1]}
39. Kc3 {[%clk 0:01:33.4]} 39... Kf3 {[%clk 0:00:16.4]} 40. Kd2 {[%clk
0:01:26.9]} 40... Kg2 {[%clk 0:00:16.6]} 41. Ke1 {[%clk 0:01:26.5]} 41... Kh3
{[%clk 0:00:15.4]} 42. Ke2 {[%clk 0:01:21.1]} 42... h4 {[%clk 0:00:14.3]} 43.
Bd6 {[%clk 0:01:21.4]} 43... Kg2 {[%clk 0:00:13.7]} 44. Ke3 {[%clk 0:01:06]}
44... Kf1 {[%clk 0:00:11.4]} 45. c3 {[%clk 0:00:59.6]} 45... Kg2 {[%clk
0:00:11.1]} 46. Be5 {[%clk 0:00:55.4]} 46... Kf1 {[%clk 0:00:11.1]} 47. Bd6
{[%clk 0:00:55.3]} 47... Ke1 {[%clk 0:00:10]} 48. Kf4 {[%clk 0:00:37.5]} 48...
Bd7 {[%clk 0:00:07.9]} 0-1

[Event "Late-Titled-Tuesday-Blitz-April-23-2024"]
[Site "Chess.com"]
[Date "2024.04.23"]
[Round "1"]
[White "malakismayil"]
[Black "lluiss"]
[Result "1-0"]
[WhiteElo "2576"]
[BlackElo "2137"]
[TimeControl "180+1"]
[EndTime "14:08:10 PDT"]
[Termination "malakismayil won on time"]

1. e4 {[%clk 0:03:00.9]} 1... c5 {[%clk 0:02:58.8]} 2. Nf3 {[%clk 0:03:01.4]}
2... d6 {[%clk 0:02:51.5]} 3. Bb5+ {[%clk 0:03:01.5]} 3... Bd7 {[%clk
0:02:50.5]} 4. Bxd7+ {[%clk 0:03:01.2]} 4... Nxd7 {[%clk 0:02:51.4]} 5. O-O
{[%clk 0:03:00.8]} 5... Ngf6 {[%clk 0:02:50.2]} 6. Re1 {[%clk 0:03:01.2]} 6...
e6 {[%clk 0:02:50.1]} 7. d4 {[%clk 0:03:01.3]} 7... cxd4 {[%clk 0:02:49.4]} 8.
Nxd4 {[%clk 0:03:02.2]} 8... a6 {[%clk 0:02:49.7]} 9. c4 {[%clk 0:03:02.1]} 9...
Be7 {[%clk 0:02:49.9]} 10. b3 {[%clk 0:02:59.7]} 10... O-O {[%clk 0:02:49.5]}
11. Bb2 {[%clk 0:03:00.3]} 11... Rc8 {[%clk 0:02:39.9]} 12. Nc3 {[%clk
0:03:00.7]} 12... Qa5 {[%clk 0:02:39.9]} 13. Rc1 {[%clk 0:02:59.6]} 13... Rfe8
{[%clk 0:02:37.4]} 14. h3 {[%clk 0:02:55.7]} 14... g6 {[%clk 0:02:35.2]} 15. Qd2
{[%clk 0:02:53.8]} 15... Bf8 {[%clk 0:02:32]} 16. Nf3 {[%clk 0:02:43.9]} 16...
Red8 {[%clk 0:02:10.8]} 17. Red1 {[%clk 0:02:35.3]} 17... b5 {[%clk 0:01:53.7]}
18. cxb5 {[%clk 0:02:18.6]} 18... axb5 {[%clk 0:01:52.9]} 19. Qe3 {[%clk
0:02:19.3]} 19... b4 {[%clk 0:01:44.3]} 20. Na4 {[%clk 0:02:18.9]} 20... Rb8
{[%clk 0:01:12.9]} 21. Qf4 {[%clk 0:02:11.1]} 21... e5 {[%clk 0:01:12.2]} 22.
Qe3 {[%clk 0:02:07.8]} 22... Be7 {[%clk 0:01:02.5]} 23. Nd2 {[%clk 0:02:05.5]}
23... Nb6 {[%clk 0:00:56.6]} 24. Nxb6 {[%clk 0:02:01.5]} 24... Qxb6 {[%clk
0:00:56.3]} 25. Qe2 {[%clk 0:01:56.7]} 25... Ra8 {[%clk 0:00:54.4]} 26. Ra1
{[%clk 0:01:52]} 26... Ra7 {[%clk 0:00:49.1]} 27. Nc4 {[%clk 0:01:50.6]} 27...
Qa6 {[%clk 0:00:48.8]} 28. f3 {[%clk 0:01:39.8]} 28... Qb7 {[%clk 0:00:46.5]}
29. Bc1 {[%clk 0:01:22.5]} 29... Rda8 {[%clk 0:00:29.4]} 30. Bg5 {[%clk
0:01:18.9]} 30... Ne8 {[%clk 0:00:29]} 31. Be3 {[%clk 0:01:17.1]} 31... Ra6
{[%clk 0:00:28]} 32. Rd2 {[%clk 0:01:15.6]} 32... Nc7 {[%clk 0:00:25.6]} 33. Qd3
{[%clk 0:00:50.6]} 33... Nb5 {[%clk 0:00:25.1]} 34. Kh2 {[%clk 0:00:37.5]} 34...
Bf8 {[%clk 0:00:24.8]} 35. Bg5 {[%clk 0:00:32.9]} 35... h6 {[%clk 0:00:23.1]}
36. Bf6 {[%clk 0:00:28.9]} 36... Nd4 {[%clk 0:00:21.9]} 37. Ne3 {[%clk
0:00:28.8]} 37... Ra3 {[%clk 0:00:18.3]} 38. Nd5 {[%clk 0:00:13.1]} 38... Rxb3
{[%clk 0:00:15.9]} 39. axb3 {[%clk 0:00:10.8]} 39... Rxa1 {[%clk 0:00:15.5]} 40.
Bh4 {[%clk 0:00:09.6]} 40... Bg7 {[%clk 0:00:12]} 41. Bf2 {[%clk 0:00:09.2]}
41... Ra8 {[%clk 0:00:05.6]} 42. Bxd4 {[%clk 0:00:05.7]} 42... exd4 {[%clk
0:00:05.1]} 43. Rc2 {[%clk 0:00:06.6]} 43... Rc8 {[%clk 0:00:05]} 44. Rxc8+
{[%clk 0:00:03.3]} 44... Qxc8 {[%clk 0:00:05.1]} 45. Nxb4 {[%clk 0:00:04.2]}
45... Qb8 {[%clk 0:00:04.4]} 46. Nd5 {[%clk 0:00:04.3]} 46... Be5+ {[%clk
0:00:04.4]} 47. f4 {[%clk 0:00:03]} 47... Bg7 {[%clk 0:00:03.7]} 48. b4 {[%clk
0:00:03.5]} 48... h5 {[%clk 0:00:03.4]} 49. h4 {[%clk 0:00:04]} 49... Qd8 {[%clk
0:00:02.9]} 50. Kh3 {[%clk 0:00:04]} 50... Bf8 {[%clk 0:00:03]} 51. g3 {[%clk
0:00:04.2]} 51... Be7 {[%clk 0:00:03.1]} 52. Qc4 {[%clk 0:00:04.5]} 52... Bf8
{[%clk 0:00:02.7]} 53. Qc6 {[%clk 0:00:04.2]} 53... Qb8 {[%clk 0:00:01.2]} 54.
Qc4 {[%clk 0:00:04.1]} 54... Kg7 {[%clk 0:00:01.1]} 55. Qxd4+ {[%clk 0:00:04.2]}
1-0